[Event "Live Chess"]
[Site "Chess.com"]
[Date "2024.06.02"]
[Round "-"]
[White "juniortay"]
[Black "Bradfield133"]
[Result "1-0"]
[WhiteElo "2306"]
[BlackElo "1848"]
[TimeControl "300"]
[EndTime "7:41:52 PDT"]
[Termination "juniortay won on time"]

1. e4 {[%clk 0:04:57.9]} 1... c5 {[%clk 0:04:57.4]} 2. f3 {[%clk 0:04:56.6]}
2... g6 {[%clk 0:04:54.6]} 3. Ne2 {[%clk 0:04:55.3]} 3... Bg7 {[%clk 0:04:53.1]}
4. d4 {[%clk 0:04:54]} 4... cxd4 {[%clk 0:04:51.9]} 5. Nxd4 {[%clk 0:04:53.2]}
5... Nc6 {[%clk 0:04:49.8]} 6. Nb3 {[%clk 0:04:34.8]} 6... Nf6 {[%clk
0:04:47.4]} 7. Nc3 {[%clk 0:04:33.5]} 7... O-O {[%clk 0:04:45.8]} 8. Be3 {[%clk
0:04:31.9]} 8... d6 {[%clk 0:04:40.2]} 9. Be2 {[%clk 0:04:30.6]} 9... a6 {[%clk
0:04:27.9]} 10. a4 {[%clk 0:04:26.3]} 10... Be6 {[%clk 0:04:20.6]} 11. a5 {[%clk
0:04:24.4]} 11... Bxb3 {[%clk 0:04:16.6]} 12. cxb3 {[%clk 0:04:22.6]} 12... Nxa5
{[%clk 0:04:15.4]} 13. O-O {[%clk 0:04:19.8]} 13... Nc6 {[%clk 0:04:10.8]} 14.
Qd2 {[%clk 0:04:11.6]} 14... Rc8 {[%clk 0:04:05.6]} 15. Rfd1 {[%clk 0:04:09.2]}
15... Ne5 {[%clk 0:03:50.6]} 16. h3 {[%clk 0:04:05.1]} 16... Qc7 {[%clk
0:03:40.4]} 17. Rac1 {[%clk 0:04:01.2]} 17... Qb8 {[%clk 0:03:37.2]} 18. Bb6
{[%clk 0:03:44.3]} 18... Ned7 {[%clk 0:03:34.9]} 19. Na4 {[%clk 0:03:40.4]}
19... Rxc1 {[%clk 0:03:23.8]} 20. Rxc1 {[%clk 0:03:38.3]} 20... Rc8 {[%clk
0:03:21.5]} 21. Be3 {[%clk 0:03:30.4]} 21... b5 {[%clk 0:03:13.5]} 22. Nc3
{[%clk 0:03:28.1]} 22... Rc7 {[%clk 0:02:46.9]} 23. Rd1 {[%clk 0:03:24.7]} 23...
Qc8 {[%clk 0:02:42.8]} 24. Bh6 {[%clk 0:03:10.4]} 24... Nc5 {[%clk 0:02:33.2]}
25. b4 {[%clk 0:03:04.4]} 25... Ne6 {[%clk 0:02:21.6]} 26. Bd3 {[%clk
0:02:55.9]} 26... Qb7 {[%clk 0:01:53.9]} 27. Be3 {[%clk 0:02:42.8]} 27... Rd7
{[%clk 0:01:45.7]} 28. Bb1 {[%clk 0:02:22.5]} 28... Nc7 {[%clk 0:01:36.7]} 29.
Ba2 {[%clk 0:02:20.6]} 29... e6 {[%clk 0:01:30.8]} 30. Bf4 {[%clk 0:02:14.7]}
30... d5 {[%clk 0:01:26.1]} 31. Bxc7 {[%clk 0:02:10.6]} 31... Qxc7 {[%clk
0:01:24.5]} 32. exd5 {[%clk 0:02:08.5]} 32... Nxd5 {[%clk 0:01:18.2]} 33. Nxd5
{[%clk 0:02:06.7]} 33... exd5 {[%clk 0:01:05.3]} 34. Bxd5 {[%clk 0:02:05.2]}
34... Qb6+ {[%clk 0:00:57.1]} 35. Kh1 {[%clk 0:02:03.3]} 35... Qf6 {[%clk
0:00:39]} 36. b3 {[%clk 0:01:56]} 36... Qc3 {[%clk 0:00:27.4]} 37. Qe2 {[%clk
0:01:50.9]} 37... Qe5 {[%clk 0:00:22.7]} 38. Qd3 {[%clk 0:01:39.7]} 38... Kf8
{[%clk 0:00:18]} 39. Qe4 {[%clk 0:01:36]} 39... Qxe4 {[%clk 0:00:15.8]} 40. fxe4
{[%clk 0:01:34.9]} 40... Bc3 {[%clk 0:00:12.9]} 41. Rf1 {[%clk 0:01:26.2]} 41...
Bxb4 {[%clk 0:00:10.5]} 42. Rf6 {[%clk 0:01:24.7]} 42... Bd6 {[%clk 0:00:05]}
43. Rf2 {[%clk 0:01:11]} 43... Re7 {[%clk 0:00:01.7]} 44. g4 {[%clk 0:01:08.2]}
1-0

[Event "Live Chess"]
[Site "Chess.com"]
[Date "2024.06.02"]
[Round "-"]
[White "degringolade64"]
[Black "lyricalschemes"]
[Result "1-0"]
[WhiteElo "2096"]
[BlackElo "2223"]
[TimeControl "300"]
[EndTime "7:42:04 PDT"]
[Termination "degringolade64 won by checkmate"]

1. e4 {[%clk 0:04:57]} 1... Nf6 {[%clk 0:04:58.9]} 2. e5 {[%clk 0:04:55.8]} 2...
Nd5 {[%clk 0:04:58.1]} 3. d4 {[%clk 0:04:54.4]} 3... d6 {[%clk 0:04:57.4]} 4. c4
{[%clk 0:04:53]} 4... Nb6 {[%clk 0:04:54.6]} 5. f4 {[%clk 0:04:52.5]} 5... dxe5
{[%clk 0:04:53]} 6. fxe5 {[%clk 0:04:52.4]} 6... Nc6 {[%clk 0:04:52.1]} 7. Be3
{[%clk 0:04:50.8]} 7... Bf5 {[%clk 0:04:51.5]} 8. Nc3 {[%clk 0:04:49.1]} 8... e6
{[%clk 0:04:50.3]} 9. Nf3 {[%clk 0:04:46.3]} 9... Be7 {[%clk 0:04:49.9]} 10. Be2
{[%clk 0:04:41.6]} 10... O-O {[%clk 0:04:48.6]} 11. O-O {[%clk 0:04:39]} 11...
f6 {[%clk 0:04:47.5]} 12. exf6 {[%clk 0:04:36.9]} 12... Bxf6 {[%clk 0:04:46.9]}
13. Qd2 {[%clk 0:04:31.1]} 13... Qe7 {[%clk 0:04:45.1]} 14. Rad1 {[%clk
0:04:26.3]} 14... Rad8 {[%clk 0:04:43.6]} 15. Kh1 {[%clk 0:04:17.3]} 15... Bg4
{[%clk 0:04:40.8]} 16. Ne4 {[%clk 0:04:11.4]} 16... Bxf3 {[%clk 0:04:36.5]} 17.
Nxf6+ {[%clk 0:04:10.4]} 17... gxf6 {[%clk 0:04:25.9]} 18. gxf3 {[%clk
0:04:08.6]} 18... Kh8 {[%clk 0:04:22.3]} 19. Rg1 {[%clk 0:04:02.6]} 19... Rg8
{[%clk 0:04:16.9]} 20. Rxg8+ {[%clk 0:03:19.3]} 20... Rxg8 {[%clk 0:04:16.8]}
21. Rg1 {[%clk 0:03:18]} 21... Rxg1+ {[%clk 0:04:12]} 22. Bxg1 {[%clk
0:03:16.7]} 22... e5 {[%clk 0:03:54.9]} 23. d5 {[%clk 0:03:13.2]} 23... Nd4
{[%clk 0:03:45.8]} 24. Bd1 {[%clk 0:03:03.5]} 24... Nxc4 {[%clk 0:03:41.8]} 25.
Qc3 {[%clk 0:02:55.3]} 25... Nb6 {[%clk 0:03:34.9]} 26. Bxd4 {[%clk 0:02:32.2]}
26... exd4 {[%clk 0:03:32.7]} 27. Qxd4 {[%clk 0:02:31.6]} 27... Qe1+ {[%clk
0:03:30.3]} 28. Kg2 {[%clk 0:02:26.1]} 28... Qe5 {[%clk 0:03:27.1]} 29. Qc5
{[%clk 0:02:12.6]} 29... Qxb2+ {[%clk 0:03:21.7]} 30. Kh3 {[%clk 0:02:10.4]}
30... Kg7 {[%clk 0:03:18.1]} 31. Qe7+ {[%clk 0:02:07.6]} 31... Kg6 {[%clk
0:03:14.3]} 32. Qxc7 {[%clk 0:01:57.5]} 32... Nxd5 {[%clk 0:03:02.8]} 33. Bc2+
{[%clk 0:01:52.5]} 33... Kh6 {[%clk 0:03:01.3]} 34. Qxh7+ {[%clk 0:01:40.4]}
34... Kg5 {[%clk 0:02:58.8]} 35. Qf5+ {[%clk 0:01:39.2]} 35... Kh6 {[%clk
0:02:57.3]} 36. Qg6# {[%clk 0:01:38.3]} 1-0

[Event "Live Chess"]
[Site "Chess.com"]
[Date "2024.06.02"]
[Round "-"]
[White "missedJariChance"]
[Black "Cruiseylee78"]
[Result "0-1"]
[WhiteElo "1378"]
[BlackElo "1679"]
[TimeControl "300"]
[EndTime "7:42:32 PDT"]
[Termination "Cruiseylee78 won by resignation"]

1. b3 {[%clk 0:04:55.4]} 1... Nf6 {[%clk 0:04:56.4]} 2. Bb2 {[%clk 0:04:52.8]}
2... d5 {[%clk 0:04:55.5]} 3. Nf3 {[%clk 0:04:51.3]} 3... Bf5 {[%clk 0:04:55]}
4. e3 {[%clk 0:04:49.1]} 4... e6 {[%clk 0:04:54.3]} 5. Be2 {[%clk 0:04:41.7]}
5... c6 {[%clk 0:04:52.4]} 6. c4 {[%clk 0:04:39.3]} 6... Nbd7 {[%clk 0:04:49.3]}
7. O-O {[%clk 0:04:37]} 7... Qc7 {[%clk 0:04:47.1]} 8. d4 {[%clk 0:04:30.8]}
8... Bd6 {[%clk 0:04:44.5]} 9. Nc3 {[%clk 0:04:27.1]} 9... h5 {[%clk 0:04:37.4]}
10. c5 {[%clk 0:04:21.6]} 10... Be7 {[%clk 0:04:35.2]} 11. Rc1 {[%clk
0:04:12.9]} 11... b6 {[%clk 0:04:30.3]} 12. cxb6 {[%clk 0:04:07.6]} 12... axb6
{[%clk 0:04:30.2]} 13. Nb5 {[%clk 0:03:58.8]} 13... Qb7 {[%clk 0:04:26.4]} 14.
Na3 {[%clk 0:03:42.6]} 14... Bxa3 {[%clk 0:04:13]} 0-1

[Event "Live Chess"]
[Site "Chess.com"]
[Date "2024.06.02"]
[Round "-"]
[White "goldinspiredphoenix"]
[Black "Ksenia_2013"]
[Result "1-0"]
[WhiteElo "1501"]
[BlackElo "961"]
[TimeControl "300"]
[EndTime "7:42:40 PDT"]
[Termination "goldinspiredphoenix won by checkmate"]

1. d4 {[%clk 0:04:57.2]} 1... d5 {[%clk 0:04:58.8]} 2. c4 {[%clk 0:04:52]} 2...
dxc4 {[%clk 0:04:57]} 3. Nc3 {[%clk 0:04:50.7]} 3... Be6 {[%clk 0:04:54.7]} 4.
e4 {[%clk 0:04:48.6]} 4... Nf6 {[%clk 0:04:53.3]} 5. d5 {[%clk 0:04:46.4]} 5...
Bg4 {[%clk 0:04:51.1]} 6. Nf3 {[%clk 0:04:38.2]} 6... g6 {[%clk 0:04:47.5]} 7.
Bxc4 {[%clk 0:04:36.7]} 7... Bg7 {[%clk 0:04:46.1]} 8. Bf4 {[%clk 0:04:35.5]}
8... O-O {[%clk 0:04:44.3]} 9. h3 {[%clk 0:04:33.9]} 9... Bxf3 {[%clk
0:04:42.3]} 10. Qxf3 {[%clk 0:04:31.3]} 10... Na6 {[%clk 0:04:37.8]} 11. Bxa6
{[%clk 0:04:28.5]} 11... bxa6 {[%clk 0:04:36.1]} 12. O-O {[%clk 0:04:26.6]}
12... Qb8 {[%clk 0:04:29.5]} 13. Rab1 {[%clk 0:04:23.1]} 13... Nh5 {[%clk
0:04:21.8]} 14. Bg3 {[%clk 0:04:17.3]} 14... Nxg3 {[%clk 0:04:20.3]} 15. Qxg3
{[%clk 0:04:15.5]} 15... Bxc3 {[%clk 0:04:12.3]} 16. bxc3 {[%clk 0:04:12.5]}
16... Qc8 {[%clk 0:04:07.8]} 17. Rb3 {[%clk 0:04:07.5]} 17... Rb8 {[%clk
0:04:06.3]} 18. Rfb1 {[%clk 0:04:06.8]} 18... Rxb3 {[%clk 0:04:04.9]} 19. Rxb3
{[%clk 0:04:04.8]} 19... Rd8 {[%clk 0:03:59.8]} 20. c4 {[%clk 0:04:02.7]} 20...
e6 {[%clk 0:03:58.4]} 21. Qe5 {[%clk 0:03:58.7]} 21... exd5 {[%clk 0:03:53.7]}
22. cxd5 {[%clk 0:03:57]} 22... c6 {[%clk 0:03:51.5]} 23. Rc3 {[%clk 0:03:53.7]}
23... Qa8 {[%clk 0:03:46.1]} 24. Rxc6 {[%clk 0:03:47.8]} 24... Rc8 {[%clk
0:03:41.8]} 25. Rxa6 {[%clk 0:03:39.2]} 25... Rc1+ {[%clk 0:03:38.4]} 26. Kh2
{[%clk 0:03:35.8]} 26... f6 {[%clk 0:03:35.7]} 27. Qe6+ {[%clk 0:03:29.8]} 27...
Kh8 {[%clk 0:03:32.5]} 28. Qxf6+ {[%clk 0:03:28.7]} 28... Kg8 {[%clk 0:03:29.3]}
29. Qe6+ {[%clk 0:03:09.1]} 29... Kf8 {[%clk 0:03:26.6]} 30. Qd6+ {[%clk
0:02:58.3]} 30... Ke8 {[%clk 0:03:25.1]} 31. Qf4 {[%clk 0:02:51.3]} 31... Qc8
{[%clk 0:03:16.9]} 32. Re6+ {[%clk 0:02:46.8]} 32... Kd7 {[%clk 0:03:12.6]} 33.
Qd6# {[%clk 0:02:27.4]} 1-0

[Event "Live Chess"]
[Site "Chess.com"]
[Date "2024.06.02"]
[Round "-"]
[White "LL220284LL"]
[Black "DylanMeyer1"]
[Result "1-0"]
[WhiteElo "2467"]
[BlackElo "1728"]
[TimeControl "300"]
[EndTime "7:42:43 PDT"]
[Termination "LL220284LL won by checkmate"]

1. e3 {[%clk 0:04:56.7]} 1... d5 {[%clk 0:04:57.9]} 2. b3 {[%clk 0:04:56.6]}
2... Nf6 {[%clk 0:04:57]} 3. Bb2 {[%clk 0:04:55.7]} 3... g6 {[%clk 0:04:55.8]}
4. Nf3 {[%clk 0:04:55.3]} 4... Bg7 {[%clk 0:04:55.3]} 5. Be2 {[%clk 0:04:54.5]}
5... c6 {[%clk 0:04:54.7]} 6. O-O {[%clk 0:04:54.1]} 6... O-O {[%clk 0:04:53.6]}
7. c4 {[%clk 0:04:53.6]} 7... e6 {[%clk 0:04:52.1]} 8. Nc3 {[%clk 0:04:48.8]}
8... Nbd7 {[%clk 0:04:51.1]} 9. d4 {[%clk 0:04:46.4]} 9... Qc7 {[%clk
0:04:50.2]} 10. Rc1 {[%clk 0:04:41.3]} 10... b6 {[%clk 0:04:48.3]} 11. a3 {[%clk
0:04:35]} 11... Bb7 {[%clk 0:04:36.9]} 12. Nd2 {[%clk 0:04:33]} 12... Rae8
{[%clk 0:03:27.6]} 13. Ba1 {[%clk 0:04:27.7]} 13... a6 {[%clk 0:03:18.8]} 14.
Bf3 {[%clk 0:04:25]} 14... Qd6 {[%clk 0:03:08.5]} 15. e4 {[%clk 0:04:22.1]}
15... dxe4 {[%clk 0:03:07.1]} 16. Ncxe4 {[%clk 0:04:16.2]} 16... Nxe4 {[%clk
0:03:05.6]} 17. Nxe4 {[%clk 0:04:16]} 17... Qe7 {[%clk 0:03:02.1]} 18. c5 {[%clk
0:04:14.4]} 18... b5 {[%clk 0:02:45.5]} 19. Nd6 {[%clk 0:04:12.1]} 19... Rb8
{[%clk 0:02:41.9]} 20. Nxb7 {[%clk 0:04:10]} 20... Rxb7 {[%clk 0:02:40.6]} 21.
Bxc6 {[%clk 0:04:09.6]} 21... Rc7 {[%clk 0:02:40.1]} 22. Bf3 {[%clk 0:04:08.2]}
22... Nf6 {[%clk 0:02:38.7]} 23. b4 {[%clk 0:04:06.4]} 23... Nd5 {[%clk
0:02:37.8]} 24. Bxd5 {[%clk 0:04:04.6]} 24... exd5 {[%clk 0:02:37.7]} 25. Bc3
{[%clk 0:04:03.4]} 25... Re8 {[%clk 0:02:33.5]} 26. Qd3 {[%clk 0:04:01.7]} 26...
Qf6 {[%clk 0:02:31.5]} 27. Rce1 {[%clk 0:04:00.3]} 27... Rce7 {[%clk 0:02:30.5]}
28. Rxe7 {[%clk 0:03:58]} 28... Rxe7 {[%clk 0:02:30.4]} 29. a4 {[%clk 0:03:57]}
29... Re4 {[%clk 0:02:22]} 30. axb5 {[%clk 0:03:55.3]} 30... axb5 {[%clk
0:02:21.1]} 31. Qxb5 {[%clk 0:03:54.8]} 31... Rg4 {[%clk 0:01:52.1]} 32. Qe2
{[%clk 0:03:49.5]} 32... Qg5 {[%clk 0:01:43.8]} 33. f3 {[%clk 0:03:38.7]} 33...
Bxd4+ {[%clk 0:01:40]} 34. Kh1 {[%clk 0:03:33.3]} 34... Rf4 {[%clk 0:01:23.2]}
35. Bd2 {[%clk 0:03:31.4]} 35... Qf6 {[%clk 0:01:11.7]} 36. Bxf4 {[%clk
0:03:30]} 36... Qxf4 {[%clk 0:01:11.6]} 37. Rd1 {[%clk 0:03:24.9]} 37... Bc3
{[%clk 0:00:59.6]} 38. b5 {[%clk 0:03:23.6]} 38... d4 {[%clk 0:00:54.7]} 39. b6
{[%clk 0:03:19.8]} 39... Qb8 {[%clk 0:00:33.7]} 40. Qe4 {[%clk 0:03:11.4]} 40...
f5 {[%clk 0:00:19.7]} 41. Qe6+ {[%clk 0:03:06.5]} 41... Kg7 {[%clk 0:00:19.4]}
42. Qd6 {[%clk 0:03:03.5]} 42... Qb7 {[%clk 0:00:17.6]} 43. Qc7+ {[%clk
0:03:02.2]} 43... Qxc7 {[%clk 0:00:17.1]} 44. bxc7 {[%clk 0:03:02.1]} 44... Kh6
{[%clk 0:00:13.7]} 45. c8=Q {[%clk 0:03:02]} 45... Kg5 {[%clk 0:00:13.3]} 46.
Qd8+ {[%clk 0:03:01.1]} 46... Kh5 {[%clk 0:00:12.5]} 47. Rxd4 {[%clk 0:03:00.8]}
47... g5 {[%clk 0:00:12.4]} 48. Qe8+ {[%clk 0:02:59.8]} 48... Kh6 {[%clk
0:00:09.9]} 49. Rd6+ {[%clk 0:02:58.7]} 49... Kg7 {[%clk 0:00:08.5]} 50. Qe7+
{[%clk 0:02:58.1]} 50... Kg8 {[%clk 0:00:06.8]} 51. Rd8# {[%clk 0:02:58]} 1-0

[Event "Live Chess"]
[Site "Chess.com"]
[Date "2024.06.02"]
[Round "-"]
[White "ACM42"]
[Black "dmitro74"]
[Result "1-0"]
[WhiteElo "2165"]
[BlackElo "1744"]
[TimeControl "300"]
[EndTime "7:42:48 PDT"]
[Termination "ACM42 won by resignation"]

1. e4 {[%clk 0:04:55.9]} 1... e6 {[%clk 0:04:58.9]} 2. d4 {[%clk 0:04:54.5]}
2... d5 {[%clk 0:04:58.4]} 3. Nc3 {[%clk 0:04:53.3]} 3... dxe4 {[%clk
0:04:57.1]} 4. Nxe4 {[%clk 0:04:52.2]} 4... Nd7 {[%clk 0:04:56.7]} 5. Ne2 {[%clk
0:04:47]} 5... Ngf6 {[%clk 0:04:55.7]} 6. N2g3 {[%clk 0:04:45.4]} 6... c5 {[%clk
0:04:53.2]} 7. dxc5 {[%clk 0:04:39.6]} 7... Nxc5 {[%clk 0:04:43.7]} 8. Qxd8+
{[%clk 0:04:37.7]} 8... Kxd8 {[%clk 0:04:42.4]} 9. Nxf6 {[%clk 0:04:35.6]} 9...
gxf6 {[%clk 0:04:41.1]} 10. Be3 {[%clk 0:04:30.9]} 10... Bd6 {[%clk 0:04:34.4]}
11. O-O-O {[%clk 0:04:28.3]} 11... Ke7 {[%clk 0:04:32.2]} 12. Bc4 {[%clk
0:04:17.2]} 12... Bd7 {[%clk 0:04:25.3]} 13. a3 {[%clk 0:04:15.7]} 13... Bc6
{[%clk 0:04:21.7]} 14. f3 {[%clk 0:04:12.8]} 14... b5 {[%clk 0:04:14.7]} 15. Ba2
{[%clk 0:04:07.7]} 15... a5 {[%clk 0:04:13.2]} 16. c3 {[%clk 0:03:59.5]} 16...
Rhd8 {[%clk 0:04:06.1]} 17. Rhe1 {[%clk 0:03:55.6]} 17... b4 {[%clk 0:03:54.9]}
18. Nf5+ {[%clk 0:03:46.6]} 18... exf5 {[%clk 0:03:47]} 19. Bxc5+ {[%clk
0:03:45.2]} 19... Kf8 {[%clk 0:03:37.2]} 20. Rxd6 {[%clk 0:03:39.9]} 20... Rxd6
{[%clk 0:03:32.9]} 21. Bxd6+ {[%clk 0:03:39.2]} 21... Kg7 {[%clk 0:03:18.6]} 22.
Re7 {[%clk 0:03:37.9]} 22... bxc3 {[%clk 0:03:11]} 23. Rxf7+ {[%clk 0:03:34]}
23... Kg6 {[%clk 0:03:09.2]} 24. bxc3 {[%clk 0:03:28.8]} 24... Rd8 {[%clk
0:02:50.8]} 25. Bf8 {[%clk 0:03:23.7]} 25... f4 {[%clk 0:02:39.5]} 26. Rc7
{[%clk 0:03:15.2]} 26... Ba4 {[%clk 0:02:30.1]} 27. Bb1+ {[%clk 0:03:07.9]}
27... f5 {[%clk 0:02:24.9]} 28. Bc5 {[%clk 0:02:44.1]} 28... Rd1+ {[%clk
0:02:19.9]} 29. Kb2 {[%clk 0:02:42.2]} 29... Rd2+ {[%clk 0:02:15]} 30. Ka1
{[%clk 0:02:40.5]} 30... Rxg2 {[%clk 0:02:10.7]} 31. Rc8 {[%clk 0:02:32.3]}
31... Rxh2 {[%clk 0:02:04.9]} 32. Rg8+ {[%clk 0:02:10.8]} 32... Kh6 {[%clk
0:01:59]} 33. Bxf5 {[%clk 0:01:50.7]} 33... Rh1+ {[%clk 0:01:56.4]} 34. Kb2
{[%clk 0:01:47.3]} 34... Rh2+ {[%clk 0:01:54.3]} 35. Kc1 {[%clk 0:01:46.6]}
35... Rc2+ {[%clk 0:01:50.3]} 36. Bxc2 {[%clk 0:01:44.9]} 1-0

[Event "Live Chess"]
[Site "Chess.com"]
[Date "2024.06.02"]
[Round "-"]
[White "elephantgerrald"]
[Black "nitrofish07"]
[Result "0-1"]
[WhiteElo "852"]
[BlackElo "2085"]
[TimeControl "300"]
[EndTime "7:43:05 PDT"]
[Termination "nitrofish07 won by checkmate"]

1. e4 {[%clk 0:04:57.3]} 1... c5 {[%clk 0:04:57.3]} 2. Nf3 {[%clk 0:04:55.7]}
2... d6 {[%clk 0:04:54.1]} 3. d4 {[%clk 0:04:53.5]} 3... cxd4 {[%clk 0:04:51]}
4. Nxd4 {[%clk 0:04:49.3]} 4... Nf6 {[%clk 0:04:47.7]} 5. Nc3 {[%clk 0:04:27.9]}
5... a6 {[%clk 0:04:42.7]} 6. Bg5 {[%clk 0:04:20.9]} 6... e6 {[%clk 0:04:40.1]}
7. Bxf6 {[%clk 0:04:18.6]} 7... Qxf6 {[%clk 0:04:38.7]} 8. Bd3 {[%clk
0:04:07.8]} 8... Bd7 {[%clk 0:04:28.1]} 9. O-O {[%clk 0:04:05.3]} 9... Qxd4
{[%clk 0:04:25.9]} 10. Qf3 {[%clk 0:03:59.9]} 10... Nc6 {[%clk 0:04:22]} 11. Ne2
{[%clk 0:03:54]} 11... Qf6 {[%clk 0:04:20.3]} 12. Qxf6 {[%clk 0:03:52.1]} 12...
gxf6 {[%clk 0:04:20.2]} 13. Rfd1 {[%clk 0:03:46.9]} 13... Be7 {[%clk 0:04:19]}
14. Ng3 {[%clk 0:03:39.7]} 14... Ne5 {[%clk 0:04:17.7]} 15. Nh5 {[%clk
0:03:34.9]} 15... Nxd3 {[%clk 0:04:15.1]} 16. cxd3 {[%clk 0:03:33.4]} 16... Rg8
{[%clk 0:04:10]} 17. Rac1 {[%clk 0:03:22.8]} 17... Rg5 {[%clk 0:04:06.3]} 18.
Ng3 {[%clk 0:03:17.8]} 18... h5 {[%clk 0:04:04.5]} 19. h4 {[%clk 0:03:15.9]}
19... Rg8 {[%clk 0:04:02.6]} 20. Nxh5 {[%clk 0:03:13.6]} 20... Rh8 {[%clk
0:03:59.8]} 21. Ng7+ {[%clk 0:03:11.6]} 21... Kf8 {[%clk 0:03:58.6]} 22. Nxe6+
{[%clk 0:03:08.6]} 22... Bxe6 {[%clk 0:03:54]} 23. b3 {[%clk 0:03:05.4]} 23...
Kg7 {[%clk 0:03:52.3]} 24. Rc7 {[%clk 0:03:01.7]} 24... Rhe8 {[%clk 0:03:39.1]}
25. Rxb7 {[%clk 0:02:59]} 25... Rac8 {[%clk 0:03:38]} 26. Rd2 {[%clk 0:02:55.2]}
26... d5 {[%clk 0:03:35.3]} 27. exd5 {[%clk 0:02:53.4]} 27... Bxd5 {[%clk
0:03:35.2]} 28. Rb6 {[%clk 0:02:50.3]} 28... Bd8 {[%clk 0:03:21.4]} 29. Rxa6
{[%clk 0:02:41.6]} 29... Re1+ {[%clk 0:03:13]} 30. Kh2 {[%clk 0:02:39.5]} 30...
Bc7+ {[%clk 0:03:12.9]} 31. g3 {[%clk 0:02:33.9]} 31... Rh1# {[%clk 0:03:11.5]}
0-1

[Event "Live Chess"]
[Site "Chess.com"]
[Date "2024.06.02"]
[Round "-"]
[White "gobbles19"]
[Black "TheSmoulderingMaster"]
[Result "1-0"]
[WhiteElo "2209"]
[BlackElo "1781"]
[TimeControl "300"]
[EndTime "7:43:11 PDT"]
[Termination "gobbles19 won by resignation"]

1. e4 {[%clk 0:04:55.3]} 1... c5 {[%clk 0:04:58.1]} 2. d4 {[%clk 0:04:53.3]}
2... cxd4 {[%clk 0:04:57]} 3. c3 {[%clk 0:04:52.6]} 3... dxc3 {[%clk 0:04:55.2]}
4. Nxc3 {[%clk 0:04:52.5]} 4... Nc6 {[%clk 0:04:54.3]} 5. Bc4 {[%clk 0:04:52.2]}
5... a6 {[%clk 0:04:53.8]} 6. Nf3 {[%clk 0:04:49.7]} 6... e6 {[%clk 0:04:53.2]}
7. O-O {[%clk 0:04:47.3]} 7... d6 {[%clk 0:04:52]} 8. Qe2 {[%clk 0:04:44.3]}
8... e5 {[%clk 0:04:47.6]} 9. h3 {[%clk 0:04:38.5]} 9... Nf6 {[%clk 0:04:45.9]}
10. Ng5 {[%clk 0:04:34.3]} 10... Be6 {[%clk 0:04:43.6]} 11. Bxe6 {[%clk
0:04:24.3]} 11... fxe6 {[%clk 0:04:42.5]} 12. Nxe6 {[%clk 0:04:22.5]} 12... Qe7
{[%clk 0:04:41.7]} 13. Ng5 {[%clk 0:04:16.9]} 13... Nd4 {[%clk 0:04:39.1]} 14.
Qd1 {[%clk 0:04:14.2]} 14... h6 {[%clk 0:04:36.2]} 15. Nf3 {[%clk 0:04:12.9]}
15... Qe6 {[%clk 0:04:29]} 16. Nxd4 {[%clk 0:04:09.8]} 16... exd4 {[%clk
0:04:28.2]} 17. Qxd4 {[%clk 0:04:09.5]} 17... Be7 {[%clk 0:04:24.9]} 18. Be3
{[%clk 0:04:02.9]} 18... O-O {[%clk 0:04:21.6]} 19. Rad1 {[%clk 0:03:57.2]}
19... Rac8 {[%clk 0:04:19.2]} 20. Nd5 {[%clk 0:03:40]} 20... Nxd5 {[%clk
0:04:16.6]} 21. Qxd5 {[%clk 0:03:39.2]} 21... Qxd5 {[%clk 0:04:15.4]} 22. Rxd5
{[%clk 0:03:39.1]} 22... Rc2 {[%clk 0:04:12.4]} 23. Rd2 {[%clk 0:03:37.6]} 23...
Rxd2 {[%clk 0:04:11.2]} 24. Bxd2 {[%clk 0:03:37.5]} 24... Rc8 {[%clk 0:04:08.7]}
25. Bc3 {[%clk 0:03:36.5]} 25... Bf6 {[%clk 0:04:05.3]} 26. Rc1 {[%clk
0:03:21.5]} 26... Bxc3 {[%clk 0:04:02]} 27. Rxc3 {[%clk 0:03:20.2]} 27... Rd8
{[%clk 0:03:50.4]} 28. Rc7 {[%clk 0:03:18]} 28... Re8 {[%clk 0:03:47.2]} 29. f3
{[%clk 0:03:16.7]} 29... b5 {[%clk 0:03:39.4]} 30. Rc6 {[%clk 0:03:14.2]} 30...
d5 {[%clk 0:03:32.3]} 31. exd5 {[%clk 0:03:01.5]} 31... Re1+ {[%clk 0:03:28.6]}
32. Kh2 {[%clk 0:02:59]} 32... Rd1 {[%clk 0:03:27.3]} 33. d6 {[%clk 0:02:56.8]}
33... Kf7 {[%clk 0:03:25.9]} 34. Rxa6 {[%clk 0:02:55.4]} 34... Ke6 {[%clk
0:03:24.1]} 35. b3 {[%clk 0:02:52.8]} 1-0